[Event "Titled Tuesday Blitz November 07 Early 2023"]
[White "Asavasaetakul, Chawit"]
[Black "Weetik, Vjacheslav"]
[WhiteFideId "6204856"]
[BlackFideId "4153472"]
[WhiteElo "2644"]
[BlackElo "2778"]
[Result "1-0"]
[Round "7"]
[TimeControl "180+1"]
[Date "2023.11.07"]
[WhiteClock "0:00:37"]
[BlackClock "0:01:00"]
[Board "50"]

1. e4 {[%clk 0:03:00]}  c6 {[%clk 0:03:00]} 2. d4 {[%clk 0:03:00]}  d5 {[%clk 0:03:00]} 3. Nd2 {[%clk 0:03:01]}  dxe4 {[%clk 0:03:00]} 4. Nxe4 {[%clk 0:03:02]}  Nf6 {[%clk 0:03:01]} 5. Nxf6+ {[%clk 0:03:02]}  exf6 {[%clk 0:03:01]} 6. c3 {[%clk 0:03:02]}  Bd6 {[%clk 0:03:02]} 7. Bd3 {[%clk 0:03:03]}  O-O {[%clk 0:03:03]} 8. Ne2 {[%clk 0:03:03]}  Re8 {[%clk 0:03:04]} 9. O-O {[%clk 0:03:03]}  Nd7 {[%clk 0:03:04]} 10. Bf4 {[%clk 0:03:01]}  Nf8 {[%clk 0:03:02]} 11. Qd2 {[%clk 0:02:59]}  Ng6 {[%clk 0:03:01]} 12. Bxd6 {[%clk 0:02:58]}  Qxd6 {[%clk 0:03:01]} 13. Rfe1 {[%clk 0:02:57]}  Be6 {[%clk 0:02:49]} 14. Bxg6 {[%clk 0:02:51]}  hxg6 {[%clk 0:02:48]} 15. Nf4 {[%clk 0:02:52]}  Bc4 {[%clk 0:02:44]} 16. b3 {[%clk 0:02:51]}  Ba6 {[%clk 0:02:44]} 17. c4 {[%clk 0:02:51]}  Rxe1+ {[%clk 0:02:36]} 18. Rxe1 {[%clk 0:02:50]}  Rd8 {[%clk 0:02:37]} 19. h4 {[%clk 0:02:31]}  b5 {[%clk 0:02:17]} 20. c5 {[%clk 0:02:25]}  Qf8 {[%clk 0:02:04]} 21. b4 {[%clk 0:02:23]}  Bc8 {[%clk 0:02:04]} 22. Qe3 {[%clk 0:02:16]}  Bd7 {[%clk 0:02:00]} 23. d5 {[%clk 0:02:09]}  g5 {[%clk 0:01:55]} 24. hxg5 {[%clk 0:02:09]}  fxg5 {[%clk 0:01:56]} 25. Nd3 {[%clk 0:02:06]}  cxd5 {[%clk 0:01:53]} 26. Qxg5 {[%clk 0:02:05]}  d4 {[%clk 0:01:44]} 27. Qe5 {[%clk 0:01:56]}  Be6 {[%clk 0:01:41]} 28. c6 {[%clk 0:01:49]}  Bc4 {[%clk 0:01:41]} 29. Nc5 {[%clk 0:01:49]}  d3 {[%clk 0:01:40]} 30. c7 {[%clk 0:01:48]}  Rc8 {[%clk 0:01:39]} 31. Nd7 {[%clk 0:01:37]}  Qxb4 {[%clk 0:01:39]} 32. Qe8+ {[%clk 0:01:32]}  Rxe8 {[%clk 0:01:36]} 33. Rxe8+ {[%clk 0:01:31]}  Kh7 {[%clk 0:01:35]} 34. c8=Q {[%clk 0:01:31]}  d2 {[%clk 0:01:24]} 35. Rh8+ {[%clk 0:01:27]}  Kg6 {[%clk 0:01:24]} 36. Ne5+ {[%clk 0:01:05]}  Kf6 {[%clk 0:01:21]} 37. Ng4+ {[%clk 0:01:05]}  Kg5 {[%clk 0:01:18]} 38. Rh5+ {[%clk 0:00:43]}  Kxh5 {[%clk 0:00:59]} 39. Qf5+ {[%clk 0:00:43]}  Kh4 {[%clk 0:01:00]} 40. g3+ {[%clk 0:00:41]}  Kh3 {[%clk 0:01:00]} 41. Qh5# {[%clk 0:00:37]} 1-0


[Site "https://www.chess.com"]

[Event "Titled Tuesday Blitz November 07 Early 2023"]
[White "Sattarov, Bobir"]
[Black "Kvaloy, Aksel Bu"]
[WhiteFideId "14203081"]
[BlackFideId "1528815"]
[WhiteElo "2771"]
[BlackElo "2632"]
[Result "1-0"]
[Round "7"]
[TimeControl "180+1"]
[Date "2023.11.07"]
[WhiteClock "0:00:36"]
[BlackClock "0:00:03"]
[Board "51"]

1. e4 {[%clk 0:03:00]}  e5 {[%clk 0:02:59]} 2. Nf3 {[%clk 0:03:00]}  Nf6 {[%clk 0:02:55]} 3. Nc3 {[%clk 0:02:59]}  Bc5 {[%clk 0:02:52]} 4. Bc4 {[%clk 0:02:35]}  d6 {[%clk 0:02:49]} 5. d3 {[%clk 0:02:32]}  Bg4 {[%clk 0:02:45]} 6. h3 {[%clk 0:02:25]}  Bh5 {[%clk 0:02:44]} 7. g4 {[%clk 0:02:18]}  Bg6 {[%clk 0:02:43]} 8. Be3 {[%clk 0:02:11]}  Bxe3 {[%clk 0:02:41]} 9. fxe3 {[%clk 0:02:12]}  h6 {[%clk 0:02:27]} 10. Qe2 {[%clk 0:02:08]}  Nbd7 {[%clk 0:02:24]} 11. Rf1 {[%clk 0:02:02]}  c6 {[%clk 0:02:18]} 12. a3 {[%clk 0:01:59]}  Qe7 {[%clk 0:02:09]} 13. Qf2 {[%clk 0:01:54]}  O-O-O {[%clk 0:02:04]} 14. O-O-O {[%clk 0:01:52]}  Nh7 {[%clk 0:01:54]} 15. Nh4 {[%clk 0:01:47]}  Rhf8 {[%clk 0:01:47]} 16. Nf5 {[%clk 0:01:40]}  Bxf5 {[%clk 0:01:46]} 17. gxf5 {[%clk 0:01:40]}  g5 {[%clk 0:01:31]} 18. Rg1 {[%clk 0:01:25]}  Nhf6 {[%clk 0:01:26]} 19. Ba2 {[%clk 0:01:17]}  Kb8 {[%clk 0:01:24]} 20. Qf3 {[%clk 0:01:14]}  Rg8 {[%clk 0:01:19]} 21. Ne2 {[%clk 0:01:12]}  Nb6 {[%clk 0:01:16]} 22. Ng3 {[%clk 0:01:10]}  d5 {[%clk 0:01:11]} 23. exd5 {[%clk 0:01:09]}  cxd5 {[%clk 0:01:12]} 24. Nh5 {[%clk 0:01:06]}  Nxh5 {[%clk 0:01:01]} 25. Qxh5 {[%clk 0:01:07]}  Qf6 {[%clk 0:01:01]} 26. Rdf1 {[%clk 0:01:04]}  Rc8 {[%clk 0:00:55]} 27. Bb3 {[%clk 0:01:03]}  Rgd8 {[%clk 0:00:50]} 28. h4 {[%clk 0:01:01]}  gxh4 {[%clk 0:00:49]} 29. Rg4 {[%clk 0:01:01]}  Nd7 {[%clk 0:00:36]} 30. Bxd5 {[%clk 0:00:46]}  Nc5 {[%clk 0:00:34]} 31. Qxf7 {[%clk 0:00:45]}  Nxd3+ {[%clk 0:00:33]} 32. Kb1 {[%clk 0:00:45]}  Qxf7 {[%clk 0:00:15]} 33. Bxf7 {[%clk 0:00:46]}  Nc5 {[%clk 0:00:12]} 34. Rxh4 {[%clk 0:00:46]}  Rf8 {[%clk 0:00:12]} 35. Bd5 {[%clk 0:00:44]}  Rf6 {[%clk 0:00:11]} 36. e4 {[%clk 0:00:42]}  Rcf8 {[%clk 0:00:09]} 37. Rg1 {[%clk 0:00:42]}  b6 {[%clk 0:00:08]} 38. Rg7 {[%clk 0:00:41]}  Rd8 {[%clk 0:00:03]} 39. Rg6 {[%clk 0:00:39]}  Rdf8 {[%clk 0:00:03]} 40. Rhxh6 {[%clk 0:00:39]}  Nd7 {[%clk 0:00:01]} 41. Be6 {[%clk 0:00:37]}  Rxg6 {[%clk 0:00:01]} 42. fxg6 {[%clk 0:00:36]}  Nf6 {[%clk 0:00:02]} 43. g7 {[%clk 0:00:36]}  Re8 {[%clk 0:00:03]} 44. Rxf6 {[%clk 0:00:36]} 1-0


[Site "https://www.chess.com"]

[Event "Titled Tuesday Blitz November 07 Early 2023"]
[White "Kononenko, Dmitry"]
[Black "Mindlin, Alon"]
[WhiteFideId "14113538"]
[BlackFideId "2800071"]
[WhiteElo "2611"]
[BlackElo "2751"]
[Result "0-1"]
[Round "7"]
[TimeControl "180+1"]
[Date "2023.11.07"]
[WhiteClock "0:01:37"]
[BlackClock "0:01:40"]
[Board "52"]

1. d4 {[%clk 0:02:59]}  Nf6 {[%clk 0:02:59]} 2. c4 {[%clk 0:02:58]}  e6 {[%clk 0:02:58]} 3. g3 {[%clk 0:02:58]}  Bb4+ {[%clk 0:02:55]} 4. Bd2 {[%clk 0:02:58]}  Qe7 {[%clk 0:02:54]} 5. Bg2 {[%clk 0:02:58]}  Nc6 {[%clk 0:02:54]} 6. Nf3 {[%clk 0:02:58]}  Bxd2+ {[%clk 0:02:53]} 7. Nbxd2 {[%clk 0:02:56]}  d6 {[%clk 0:02:53]} 8. e4 {[%clk 0:02:54]}  O-O {[%clk 0:02:52]} 9. O-O {[%clk 0:02:54]}  e5 {[%clk 0:02:53]} 10. d5 {[%clk 0:02:54]}  Nb8 {[%clk 0:02:53]} 11. Ne1 {[%clk 0:02:54]}  a5 {[%clk 0:02:54]} 12. Nd3 {[%clk 0:02:54]}  Na6 {[%clk 0:02:54]} 13. f4 {[%clk 0:02:54]}  Nd7 {[%clk 0:02:54]} 14. f5 {[%clk 0:02:52]}  f6 {[%clk 0:02:55]} 15. g4 {[%clk 0:02:52]}  Ndc5 {[%clk 0:02:55]} 16. Nf3 {[%clk 0:02:49]}  Bd7 {[%clk 0:02:38]} 17. Nxc5 {[%clk 0:02:45]}  Nxc5 {[%clk 0:02:38]} 18. Qe2 {[%clk 0:02:45]}  Rfb8 {[%clk 0:02:35]} 19. h4 {[%clk 0:02:40]}  b5 {[%clk 0:02:35]} 20. b3 {[%clk 0:02:36]}  bxc4 {[%clk 0:02:34]} 21. bxc4 {[%clk 0:02:37]}  c6 {[%clk 0:02:22]} 22. g5 {[%clk 0:02:33]}  cxd5 {[%clk 0:02:22]} 23. exd5 {[%clk 0:02:30]}  Bxf5 {[%clk 0:02:15]} 24. Nxe5 {[%clk 0:02:30]}  Bd3 {[%clk 0:02:08]} 25. Qg4 {[%clk 0:02:10]}  Bxf1 {[%clk 0:01:56]} 26. Rxf1 {[%clk 0:02:01]}  fxe5 {[%clk 0:01:55]} 27. h5 {[%clk 0:01:58]}  Rf8 {[%clk 0:01:54]} 28. Re1 {[%clk 0:01:56]}  Nd3 {[%clk 0:01:49]} 29. Re3 {[%clk 0:01:52]}  Qa7 {[%clk 0:01:44]} 30. Qe4 {[%clk 0:01:37]}  Nf2 {[%clk 0:01:40]} 0-1


[Site "https://www.chess.com"]

[Event "Titled Tuesday Blitz November 07 Early 2023"]
[White "Sydoryka, Vladyslav"]
[Black "Korchmar, Vasiliy"]
[WhiteFideId "14145928"]
[BlackFideId "24131750"]
[WhiteElo "2604"]
[BlackElo "2746"]
[Result "0-1"]
[Round "7"]
[TimeControl "180+1"]
[Date "2023.11.07"]
[WhiteClock "0:00:02"]
[BlackClock "0:00:01"]
[Board "53"]

1. c4 {[%clk 0:03:00]}  e6 {[%clk 0:02:59]} 2. g3 {[%clk 0:02:56]}  d5 {[%clk 0:02:59]} 3. Bg2 {[%clk 0:02:56]}  Nf6 {[%clk 0:03:00]} 4. Nf3 {[%clk 0:02:57]}  d4 {[%clk 0:02:59]} 5. e3 {[%clk 0:02:52]}  c5 {[%clk 0:02:59]} 6. exd4 {[%clk 0:02:52]}  cxd4 {[%clk 0:03:00]} 7. O-O {[%clk 0:02:52]}  Nc6 {[%clk 0:03:01]} 8. Re1 {[%clk 0:02:53]}  Bd6 {[%clk 0:02:58]} 9. Na3 {[%clk 0:02:52]}  O-O {[%clk 0:02:53]} 10. d3 {[%clk 0:02:50]}  h6 {[%clk 0:02:53]} 11. Nc2 {[%clk 0:02:47]}  e5 {[%clk 0:02:53]} 12. b4 {[%clk 0:02:42]}  Nxb4 {[%clk 0:01:59]} 13. Nxb4 {[%clk 0:02:23]}  Bxb4 {[%clk 0:01:59]} 14. Rxe5 {[%clk 0:02:24]}  Bg4 {[%clk 0:01:49]} 15. Rb1 {[%clk 0:02:14]}  Bc3 {[%clk 0:01:38]} 16. Re4 {[%clk 0:02:13]}  Qd7 {[%clk 0:01:32]} 17. Re2 {[%clk 0:02:10]}  Qf5 {[%clk 0:01:29]} 18. Re7 {[%clk 0:02:04]}  Rfe8 {[%clk 0:01:19]} 19. Rbxb7 {[%clk 0:01:37]}  Rxe7 {[%clk 0:01:18]} 20. Rxe7 {[%clk 0:01:38]}  Rb8 {[%clk 0:01:19]} 21. Bf4 {[%clk 0:00:58]}  Rb2 {[%clk 0:01:16]} 22. h3 {[%clk 0:00:44]}  Bxh3 {[%clk 0:01:14]} 23. Bxh3 {[%clk 0:00:45]}  Qxh3 {[%clk 0:01:14]} 24. Re2 {[%clk 0:00:45]}  Rb7 {[%clk 0:01:05]} 25. c5 {[%clk 0:00:37]}  Nd5 {[%clk 0:01:02]} 26. Bd6 {[%clk 0:00:20]}  Qc8 {[%clk 0:00:35]} 27. Ne5 {[%clk 0:00:17]}  Bb4 {[%clk 0:00:35]} 28. Rb2 {[%clk 0:00:15]}  Bxc5 {[%clk 0:00:28]} 29. Rxb7 {[%clk 0:00:11]}  Bxd6 {[%clk 0:00:28]} 30. Rb5 {[%clk 0:00:03]}  Nc3 {[%clk 0:00:28]} 31. Qc2 {[%clk 0:00:04]}  Qe8 {[%clk 0:00:23]} 32. Ra5 {[%clk 0:00:02]}  Bxe5 {[%clk 0:00:23]} 33. Rxa7 {[%clk 0:00:02]}  Qb8 {[%clk 0:00:13]} 34. Ra4 {[%clk 0:00:01]}  Bxg3 {[%clk 0:00:13]} 35. Rxd4 {[%clk 0:00:01]}  Bh2+ {[%clk 0:00:06]} 36. Kg2 {[%clk 0:00:01]}  Nb5 {[%clk 0:00:07]} 37. Rc4 {[%clk 0:00:01]}  Nd6 {[%clk 0:00:04]} 38. Rc6 {[%clk 0:00:01]}  Kh7 {[%clk 0:00:02]} 39. d4+ {[%clk 0:00:01]}  g6 {[%clk 0:00:02]} 40. Kxh2 {[%clk 0:00:02]}  Nf5+ {[%clk 0:00:02]} 41. Kg2 {[%clk 0:00:02]}  Nxd4 {[%clk 0:00:02]} 42. Rc8 {[%clk 0:00:03]}  Qb7+ {[%clk 0:00:02]} 43. Rc6 {[%clk 0:00:02]}  Nxc2 {[%clk 0:00:01]} 0-1


[Site "https://www.chess.com"]

[Event "Titled Tuesday Blitz November 07 Early 2023"]
[White "Timerkhanov, Alexander"]
[Black "Shapiro, Viktor"]
[WhiteFideId "24177938"]
[BlackFideId "4175700"]
[WhiteElo "2735"]
[BlackElo "2603"]
[Result "0-1"]
[Round "7"]
[TimeControl "180+1"]
[Date "2023.11.07"]
[WhiteClock "0:00:00"]
[BlackClock "0:00:16"]
[Board "54"]

1. d4 {[%clk 0:03:00]}  Nf6 {[%clk 0:03:00]} 2. Bg5 {[%clk 0:03:01]}  c5 {[%clk 0:03:00]} 3. d5 {[%clk 0:03:00]}  Qb6 {[%clk 0:03:00]} 4. Nc3 {[%clk 0:03:00]}  Qxb2 {[%clk 0:03:00]} 5. Bd2 {[%clk 0:03:00]}  Qb6 {[%clk 0:03:00]} 6. e4 {[%clk 0:03:01]}  d6 {[%clk 0:03:01]} 7. f4 {[%clk 0:03:01]}  g6 {[%clk 0:03:01]} 8. Nf3 {[%clk 0:03:01]}  Bg7 {[%clk 0:03:01]} 9. Bc4 {[%clk 0:03:01]}  O-O {[%clk 0:02:57]} 10. Rb1 {[%clk 0:02:59]}  Qd8 {[%clk 0:02:56]} 11. O-O {[%clk 0:02:59]}  a6 {[%clk 0:02:56]} 12. a4 {[%clk 0:02:59]}  b5 {[%clk 0:02:57]} 13. axb5 {[%clk 0:02:58]}  axb5 {[%clk 0:02:58]} 14. Bxb5 {[%clk 0:02:59]}  Ba6 {[%clk 0:02:58]} 15. Bxa6 {[%clk 0:02:56]}  Nxa6 {[%clk 0:02:58]} 16. e5 {[%clk 0:02:44]}  dxe5 {[%clk 0:02:51]} 17. fxe5 {[%clk 0:02:45]}  Nxd5 {[%clk 0:02:48]} 18. Ne4 {[%clk 0:02:39]}  Qc7 {[%clk 0:02:40]} 19. Qe2 {[%clk 0:02:30]}  c4 {[%clk 0:02:33]} 20. e6 {[%clk 0:02:18]}  f5 {[%clk 0:02:27]} 21. Neg5 {[%clk 0:02:16]}  c3 {[%clk 0:02:14]} 22. Bc1 {[%clk 0:02:10]}  Nab4 {[%clk 0:02:14]} 23. Qf2 {[%clk 0:02:01]}  Rfb8 {[%clk 0:01:23]} 24. Qh4 {[%clk 0:01:56]}  h5 {[%clk 0:01:21]} 25. Nf7 {[%clk 0:01:48]}  Qc6 {[%clk 0:01:11]} 26. Bf4 {[%clk 0:01:14]}  Nxf4 {[%clk 0:01:06]} 27. Qxf4 {[%clk 0:01:13]}  Qxe6 {[%clk 0:01:01]} 28. N7g5 {[%clk 0:01:10]}  Qb6+ {[%clk 0:00:57]} 29. Kh1 {[%clk 0:01:10]}  Bf6 {[%clk 0:00:47]} 30. Qc4+ {[%clk 0:01:09]}  e6 {[%clk 0:00:43]} 31. Nxe6 {[%clk 0:01:07]}  Rc8 {[%clk 0:00:41]} 32. Nc7+ {[%clk 0:01:06]}  Kg7 {[%clk 0:00:38]} 33. Nxa8 {[%clk 0:00:57]}  Rxc4 {[%clk 0:00:30]} 34. Nxb6 {[%clk 0:00:57]}  Re4 {[%clk 0:00:29]} 35. Rfe1 {[%clk 0:00:46]}  Nxc2 {[%clk 0:00:23]} 36. Rxe4 {[%clk 0:00:37]}  fxe4 {[%clk 0:00:23]} 37. Ne1 {[%clk 0:00:37]}  Ne3 {[%clk 0:00:18]} 38. Rc1 {[%clk 0:00:32]}  Bd4 {[%clk 0:00:17]} 39. Nc2 {[%clk 0:00:18]}  Nxc2 {[%clk 0:00:14]} 40. Rxc2 {[%clk 0:00:16]}  Bxb6 {[%clk 0:00:15]} 41. Rxc3 {[%clk 0:00:16]}  e3 {[%clk 0:00:16]} 42. Rc2 {[%clk 0:00:16]}  Bd4 {[%clk 0:00:16]} 43. Re2 {[%clk 0:00:16]}  Kf6 {[%clk 0:00:16]} 44. g3 {[%clk 0:00:16]}  Kf5 {[%clk 0:00:17]} 45. Kg2 {[%clk 0:00:17]}  Ke4 {[%clk 0:00:18]} 46. Ra2 {[%clk 0:00:16]}  g5 {[%clk 0:00:15]} 47. h3 {[%clk 0:00:13]}  g4 {[%clk 0:00:15]} 48. hxg4 {[%clk 0:00:13]}  hxg4 {[%clk 0:00:16]} 49. Ra8 {[%clk 0:00:10]}  Kd3 {[%clk 0:00:15]} 50. Re8 {[%clk 0:00:00]}  e2 {[%clk 0:00:16]} 0-1


[Site "https://www.chess.com"]

[Event "Titled Tuesday Blitz November 07 Early 2023"]
[White "Predator0608"]
[Black "Preotu, Razvan"]
[BlackFideId "2613280"]
[WhiteElo "2579"]
[BlackElo "2735"]
[Result "1-0"]
[Round "7"]
[TimeControl "180+1"]
[Date "2023.11.07"]
[WhiteClock "0:02:04"]
[BlackClock "0:00:00"]
[Board "55"]

1. e4 {[%clk 0:03:00]}  c5 {[%clk 0:02:55]} 2. Nf3 {[%clk 0:03:01]}  d6 {[%clk 0:02:56]} 3. d4 {[%clk 0:03:01]}  cxd4 {[%clk 0:02:56]} 4. Nxd4 {[%clk 0:03:02]}  Nf6 {[%clk 0:02:56]} 5. Nc3 {[%clk 0:03:03]}  a6 {[%clk 0:02:56]} 6. Be3 {[%clk 0:03:03]}  e5 {[%clk 0:02:56]} 7. Nf3 {[%clk 0:03:03]}  Be7 {[%clk 0:02:56]} 8. Nd2 {[%clk 0:03:03]}  b5 {[%clk 0:02:52]} 9. a4 {[%clk 0:03:03]}  b4 {[%clk 0:02:53]} 10. Nd5 {[%clk 0:03:04]}  Nxd5 {[%clk 0:02:53]} 11. exd5 {[%clk 0:03:04]}  O-O {[%clk 0:02:50]} 12. a5 {[%clk 0:03:01]}  f5 {[%clk 0:02:35]} 13. Nc4 {[%clk 0:03:01]}  Nd7 {[%clk 0:02:35]} 14. Qd2 {[%clk 0:03:00]}  Rb8 {[%clk 0:02:30]} 15. Bd3 {[%clk 0:02:57]}  Nf6 {[%clk 0:02:23]} 16. Bb6 {[%clk 0:02:49]}  Qe8 {[%clk 0:02:22]} 17. O-O-O {[%clk 0:02:33]}  Nxd5 {[%clk 0:02:12]} 18. Nxd6 {[%clk 0:02:34]}  Qa4 {[%clk 0:01:58]} 19. Kb1 {[%clk 0:02:29]}  Nxb6 {[%clk 0:00:21]} 20. axb6 {[%clk 0:02:30]}  Rxb6 {[%clk 0:00:12]} 21. Bc4+ {[%clk 0:02:20]}  Kh8 {[%clk 0:00:13]} 22. Nf7+ {[%clk 0:02:16]}  Rxf7 {[%clk 0:00:13]} 23. Qd8+ {[%clk 0:02:09]}  Rf8 {[%clk 0:00:13]} 24. Qxb6 {[%clk 0:02:09]}  b3 {[%clk 0:00:07]} 25. Bxb3 {[%clk 0:02:09]}  Qg4 {[%clk 0:00:06]} 26. Qc7 {[%clk 0:02:08]}  Bf6 {[%clk 0:00:05]} 27. Qc5 {[%clk 0:02:06]}  Re8 {[%clk 0:00:00]} 28. Bf7 {[%clk 0:02:04]} 1-0


[Site "https://www.chess.com"]

[Event "Titled Tuesday Blitz November 07 Early 2023"]
[White "Roebers, Eline"]
[Black "Darini, Pouria"]
[WhiteFideId "1058401"]
[BlackFideId "12502200"]
[WhiteElo "2575"]
[BlackElo "2733"]
[Result "1-0"]
[Round "7"]
[TimeControl "180+1"]
[Date "2023.11.07"]
[WhiteClock "0:01:09"]
[BlackClock "0:00:02"]
[Board "56"]

1. e4 {[%clk 0:03:00]}  c5 {[%clk 0:02:57]} 2. Nf3 {[%clk 0:03:01]}  d6 {[%clk 0:02:55]} 3. d4 {[%clk 0:03:01]}  cxd4 {[%clk 0:02:56]} 4. Nxd4 {[%clk 0:03:02]}  Nf6 {[%clk 0:02:56]} 5. Nc3 {[%clk 0:03:03]}  a6 {[%clk 0:02:57]} 6. Rg1 {[%clk 0:03:03]}  h5 {[%clk 0:02:42]} 7. Bg5 {[%clk 0:03:02]}  Nc6 {[%clk 0:02:42]} 8. Qd2 {[%clk 0:02:57]}  Bd7 {[%clk 0:02:38]} 9. O-O-O {[%clk 0:02:54]}  b5 {[%clk 0:02:39]} 10. a3 {[%clk 0:02:41]}  Qb6 {[%clk 0:02:37]} 11. Bxf6 {[%clk 0:02:33]}  gxf6 {[%clk 0:02:30]} 12. Nd5 {[%clk 0:02:33]}  Qa7 {[%clk 0:01:30]} 13. Nxc6 {[%clk 0:02:04]}  Bxc6 {[%clk 0:01:31]} 14. Kb1 {[%clk 0:02:05]}  Bh6 {[%clk 0:01:27]} 15. Qc3 {[%clk 0:01:47]}  Rc8 {[%clk 0:00:43]} 16. Nxf6+ {[%clk 0:01:30]}  exf6 {[%clk 0:00:35]} 17. Qxf6 {[%clk 0:01:30]}  Bxe4 {[%clk 0:00:10]} 18. Bd3 {[%clk 0:01:11]}  Bxd3 {[%clk 0:00:06]} 19. Rge1+ {[%clk 0:01:09]}  Kd7 {[%clk 0:00:02]} 20. Qxf7+ {[%clk 0:01:09]} 1-0


[Site "https://www.chess.com"]

[Event "Titled Tuesday Blitz November 07 Early 2023"]
[White "Kalogeris, Ioannis"]
[Black "Smirnov, Pavel"]
[WhiteFideId "4239563"]
[BlackFideId "4123425"]
[WhiteElo "2567"]
[BlackElo "2726"]
[Result "1-0"]
[Round "7"]
[TimeControl "180+1"]
[Date "2023.11.07"]
[WhiteClock "0:00:13"]
[BlackClock "0:00:01"]
[Board "57"]

1. e4 {[%clk 0:02:37]}  e5 {[%clk 0:02:58]} 2. Nf3 {[%clk 0:02:35]}  Nc6 {[%clk 0:02:57]} 3. Bb5 {[%clk 0:02:35]}  a6 {[%clk 0:02:56]} 4. Ba4 {[%clk 0:02:35]}  Nf6 {[%clk 0:02:55]} 5. d3 {[%clk 0:02:35]}  d6 {[%clk 0:02:49]} 6. Bxc6+ {[%clk 0:02:30]}  bxc6 {[%clk 0:02:47]} 7. Nbd2 {[%clk 0:02:29]}  Be7 {[%clk 0:02:47]} 8. Nc4 {[%clk 0:02:26]}  O-O {[%clk 0:02:48]} 9. Na5 {[%clk 0:02:24]}  c5 {[%clk 0:02:48]} 10. b3 {[%clk 0:02:08]}  Qe8 {[%clk 0:02:46]} 11. h3 {[%clk 0:02:01]}  Kh8 {[%clk 0:02:40]} 12. Nh2 {[%clk 0:01:53]}  Ng8 {[%clk 0:02:40]} 13. g4 {[%clk 0:01:38]}  g6 {[%clk 0:02:40]} 14. Bb2 {[%clk 0:01:23]}  f5 {[%clk 0:02:37]} 15. Qe2 {[%clk 0:01:19]}  fxe4 {[%clk 0:02:35]} 16. dxe4 {[%clk 0:01:18]}  Bg5 {[%clk 0:02:31]} 17. Nf3 {[%clk 0:01:06]}  Bf4 {[%clk 0:02:31]} 18. Nd2 {[%clk 0:01:00]}  Qf7 {[%clk 0:02:23]} 19. O-O-O {[%clk 0:00:53]}  Nf6 {[%clk 0:02:20]} 20. Kb1 {[%clk 0:00:52]}  Bd7 {[%clk 0:02:18]} 21. Ndc4 {[%clk 0:00:51]}  Be6 {[%clk 0:02:09]} 22. f3 {[%clk 0:00:50]}  Rab8 {[%clk 0:02:04]} 23. h4 {[%clk 0:00:49]}  Kg8 {[%clk 0:02:01]} 24. a4 {[%clk 0:00:42]}  Nd7 {[%clk 0:01:57]} 25. Nc6 {[%clk 0:00:41]}  Bxc4 {[%clk 0:01:49]} 26. Qxc4 {[%clk 0:00:40]}  Qxc4 {[%clk 0:01:45]} 27. bxc4 {[%clk 0:00:41]}  Rb6 {[%clk 0:01:45]} 28. Ne7+ {[%clk 0:00:39]}  Kf7 {[%clk 0:01:42]} 29. Nd5 {[%clk 0:00:38]}  Rb7 {[%clk 0:01:43]} 30. Ka2 {[%clk 0:00:36]}  Rfb8 {[%clk 0:01:39]} 31. Bc3 {[%clk 0:00:35]}  Nb6 {[%clk 0:01:36]} 32. Nxb6 {[%clk 0:00:30]}  Rxb6 {[%clk 0:01:36]} 33. h5 {[%clk 0:00:29]}  g5 {[%clk 0:01:27]} 34. Rb1 {[%clk 0:00:28]}  Ke6 {[%clk 0:01:26]} 35. Ba5 {[%clk 0:00:24]}  Rxb1 {[%clk 0:01:19]} 36. Rxb1 {[%clk 0:00:25]}  Rxb1 {[%clk 0:01:12]} 37. Kxb1 {[%clk 0:00:25]}  c6 {[%clk 0:01:12]} 38. Kb2 {[%clk 0:00:23]}  d5 {[%clk 0:01:11]} 39. Kb3 {[%clk 0:00:22]}  Kd6 {[%clk 0:01:10]} 40. Bd8 {[%clk 0:00:22]}  Be3 {[%clk 0:01:04]} 41. Kc3 {[%clk 0:00:21]}  Bf4 {[%clk 0:01:03]} 42. Kd3 {[%clk 0:00:21]}  Bc1 {[%clk 0:01:03]} 43. Bf6 {[%clk 0:00:19]}  Bf4 {[%clk 0:01:04]} 44. Bg7 {[%clk 0:00:19]}  Kc7 {[%clk 0:01:00]} 45. a5 {[%clk 0:00:17]}  Kd6 {[%clk 0:00:56]} 46. Bf8+ {[%clk 0:00:16]}  Ke6 {[%clk 0:00:54]} 47. Bxc5 {[%clk 0:00:17]}  Bg3 {[%clk 0:00:46]} 48. Be3 {[%clk 0:00:15]}  h6 {[%clk 0:00:44]} 49. Bc5 {[%clk 0:00:15]}  Be1 {[%clk 0:00:42]} 50. Bf8 {[%clk 0:00:15]}  Bxa5 {[%clk 0:00:15]} 51. cxd5+ {[%clk 0:00:15]}  cxd5 {[%clk 0:00:13]} 52. exd5+ {[%clk 0:00:14]}  Kxd5 {[%clk 0:00:14]} 53. Bxh6 {[%clk 0:00:15]}  Ke6 {[%clk 0:00:07]} 54. Bxg5 {[%clk 0:00:15]}  Bb4 {[%clk 0:00:07]} 55. Bd2 {[%clk 0:00:13]}  Bf8 {[%clk 0:00:05]} 56. Ke4 {[%clk 0:00:14]}  Bg7 {[%clk 0:00:03]} 57. Bc3 {[%clk 0:00:14]}  Kd6 {[%clk 0:00:01]} 58. f4 {[%clk 0:00:13]} 1-0


[Site "https://www.chess.com"]